bitfinex-derivatives/quotes_SOLF0:USTF0_20240923
["timestamp","ask_amount","ask_price","bid_price","bid_amount"]
[1727075912360,14.9282,145.85,145.76,15.591]
[1727075913251,14.9282,145.85,145.8,3.429]
[1727075914760,11.5,145.85,145.76,15.591]
[1727075914961,3.4278,145.86,145.78,11.5]
[1727075915459,3.4278,145.86,145.81,3.4287]
[1727075915654,3.428,145.85,145.78,11.5]
[1727075916260,14.928,145.85,145.8,3.429]
[1727075916455,11.5,145.83,145.76,4.091]
[1727075916658,11.5,145.83,145.76,2.6989]
[1727075917062,11.5,145.85,145.76,14.1989]
[1727075917452,11.5,145.85,145.82,3.4286]
[1727075917657,11.5,145.85,145.76,14.1989]
[1727075918058,3.4285,145.83,145.78,3.4294]
[1727075918357,11.5,145.85,145.76,14.1989]
[1727075919460,14.928,145.85,145.8,3.429]
[1727075920751,11.5,145.87,145.82,3.4286]
[1727075921063,11.5,145.87,145.78,11.5]
[1727075922862,11.5,145.85,145.76,14.1989]
[1727075923564,14.9281,145.85,145.76,14.1989]
[1727075923866,11.5,145.87,145.78,11.5]
[1727075924459,14.9275,145.87,145.78,11.5]
[1727075925265,3.4279,145.86,145.78,11.5]
[1727075925767,11.5,145.87,145.78,11.5]
[1727075925965,11.5,145.9,145.81,11.5]
[1727075926164,11.5,145.92,145.83,11.5]
[1727075926367,11.5,145.92,145.86,3.4275]
[1727075926871,11.5,145.92,145.84,1.3768]
[1727075927061,11.5,145.94,145.85,11.5]
[1727075927370,3.4263,145.93,145.85,11.5]
[1727075927566,11.5,145.96,145.87,11.5]
[1727075927765,11.5,145.96,145.88,1.4389]
[1727075928070,11.5,145.98,145.89,11.5]
[1727075928274,11.5,145.98,145.89,12.832]
[1727075928565,11.5,146.01,145.91,11.5]
[1727075928873,3.4245,146.0,145.94,3.4257]
[1727075929062,2.7215,146.05,145.92,1.3703]
[1727075929063,11.5,145.99,145.92,1.3703]
[1727075929466,2.7215,146.05,145.92,1.3703]
[1727075929667,11.5,146.02,145.92,1.3703]
[1727075929865,11.5,146.02,145.93,11.5]
[1727075930065,14.924,146.02,145.93,11.5]
[1727075930659,14.924,146.02,145.96,3.4252]
[1727075930971,11.5,146.02,145.92,1.3703]
[1727075931163,11.5,146.0,145.92,1.3703]
[1727075932069,3.425,145.98,145.92,1.3703]
[1727075932262,11.5,145.98,145.92,1.3703]
[1727075932462,11.5,145.94,145.89,4.7589]
[1727075932668,14.9259,145.94,145.89,1.332]
[1727075933171,3.4261,145.93,145.89,1.332]
[1727075933373,11.5,145.94,145.82,3.4948892]
[1727075933578,3.50283657,145.98,145.83,4.0955]
[1727075933579,11.5,145.92,145.83,4.0955]
[1727075933873,11.5,145.92,145.84,11.5]
[1727075934371,2.8581,145.97,145.83,7.53871674]
[1727075934372,18.42,145.95,145.83,22.5155]
[1727075934571,2.8581,145.97,145.83,26.02244829]
[1727075934764,18.42,145.94,145.83,26.02244829]
[1727075934970,3.4264,145.92,145.86,3.4275]
[1727075935169,18.42,145.9,145.72,3.47014413]
[1727075935368,18.42,145.9,145.77,18.42]
[1727075935562,3.4278,145.86,145.8,3.4289]
[1727075936173,3.4278,145.86,145.81,3.4289]
[1727075936676,3.4276,145.87,145.81,3.4289]
[1727075937371,3.4273,145.88,145.82,3.4285]
[1727075938469,3.4275,145.87,145.81,3.4288]
[1727075938777,18.42,145.9,145.77,21.90981551]
[1727075939569,18.42,145.87,145.76,1.3652]
[1727075940381,21.1648,145.89,145.77,18.42]
[1727075940873,18.42,145.87,145.76,1.3652]
[1727075941179,18.42,145.84,145.74,2.7726]
[1727075941374,3.4293,145.8,145.74,2.7726]
[1727075941575,18.42,145.84,145.74,2.7726]
[1727075942073,3.4288,145.82,145.77,3.4296]
[1727075943270,3.4286,145.83,145.74,21.1926]
[1727075943474,1.0,145.86,145.77,18.42]
[1727075943975,21.1648,145.89,145.77,18.42]
[1727075944179,21.1648,145.89,145.78,1.4339]
[1727075946575,18.42,145.87,145.78,1.4339]
[1727075947177,3.4283,145.84,145.8,3.429]
[1727075948284,18.42,145.87,145.78,1.4339]
[1727075948489,21.1648,145.89,145.78,1.4339]
[1727075948976,3.428,145.85,145.81,3.4287]
[1727075949171,3.428,145.85,145.78,1.4339]
[1727075949373,18.42,145.87,145.78,1.4339]
[1727075949575,18.42,145.87,145.75,18.42]
[1727075949974,3.4286,145.83,145.79,3.4293]
[1727075950485,3.4282,145.84,145.8,3.429]
[1727075950676,21.1648,145.89,145.75,18.42]
[1727075950981,21.1648,145.89,145.74,2.7726]
[1727075950982,3.428,145.85,145.77,18.42]
[1727075951379,21.1648,145.89,145.75,18.42]
[1727075951583,21.1648,145.89,145.79,3.4292]
[1727075951981,18.42,145.86,145.75,18.42]
[1727075952781,3.4284,145.84,145.75,18.42]
[1727075952980,18.42,145.86,145.75,18.42]
[1727075953381,3.4285,145.83,145.79,3.4292]
[1727075953789,18.42,145.86,145.75,18.42]
[1727075954287,3.4287,145.82,145.78,3.4294]
[1727075955689,18.42,145.86,145.75,18.42]
[1727075956087,3.4281,145.85,145.81,3.4289]
[1727075956486,3.4281,145.85,145.74,2.7726]
[1727075956487,11.52,145.86,145.77,11.52]
[1727075958091,3.4286,145.83,145.79,3.4294]
[1727075958391,11.52,145.86,145.77,11.52]
[1727075958587,3.4288,145.82,145.78,3.4294]
[1727075958786,11.52,145.84,145.74,14.2926]
[1727075959387,3.4286,145.83,145.74,14.2926]
[1727075959793,11.52,145.87,145.78,11.52]
[1727075960685,3.4281,145.85,145.78,11.52]
[1727075961396,3.4283,145.84,145.76,11.52]
[1727075961595,11.52,145.86,145.76,11.52]
[1727075962093,3.4284,145.83,145.78,3.4295]
[1727075962398,11.52,145.84,145.74,14.2926]
[1727075962589,3.4293,145.8,145.76,3.43]
[1727075962784,11.52,145.82,145.74,2.7726]
[1727075963287,11.52,145.88,145.74,1.4298]
[1727075963288,11.52,145.8,145.74,1.4298]
[1727075963593,11.52,145.8,145.71,58.30958119]
[1727075963894,11.52,145.78,145.71,58.30958119]
[1727075964295,11.52,145.78,145.69,4.1165]
[1727075964897,3.4301,145.76,145.71,3.4312]
[1727075965805,3.4301,145.76,145.69,4.1165]
[1727075965806,3.43,145.77,145.72,3.431]
[1727075966396,11.52,145.78,145.69,4.1165]
[1727075967196,3.43,145.77,145.72,3.4309]
[1727075969598,3.43,145.77,145.73,3.4308]
[1727075969801,2.7287,145.79,145.72,11.52]
[1727075970105,11.52,145.8,145.72,11.52]
[1727075970304,0.1458,145.82,145.74,11.52]
[1727075970305,11.6658,145.82,145.74,11.52]
[1727075970602,3.4292,145.8,145.74,11.52]
[1727075971800,3.4292,145.8,145.76,3.4299]
[1727075972499,3.429,145.81,145.77,3.4298]
[1727075973700,14.9487,145.82,145.78,3.4295]
[1727075974905,3.429,145.81,145.78,3.4295]
[1727075975608,14.2935,145.86,145.78,11.52]
[1727075976103,3.4282,145.84,145.8,3.429]
[1727075976800,11.52,145.82,145.75,11.52]
[1727075977302,3.4288,145.82,145.78,3.4294]
[1727075977502,3.4288,145.82,145.75,11.52]
[1727075978706,11.52,145.82,145.73,14.92274716]
[1727075978902,11.52,145.82,145.73,11.52]
[1727075979108,3.4291,145.81,145.76,3.4299]
[1727075979409,3.4291,145.81,145.73,11.52]
[1727075979410,11.52,145.82,145.73,11.52]
[1727075979701,3.4295,145.79,145.75,3.4302]
[1727075982101,11.52,145.8,145.71,11.52]
[1727075982306,11.52,145.8,145.69,4.1165]
[1727075982307,11.52,145.79,145.69,15.6365]
[1727075982711,3.4297,145.78,145.73,3.4307]
[1727075983006,11.52,145.79,145.73,3.4307]
[1727075983303,3.43,145.77,145.73,3.4307]
[1727075983504,11.52,145.79,145.72,3.4309]
[1727075983810,11.52,145.79,145.71,11.52]
[1727075984013,11.52,145.75,145.67,6.34020101]
[1727075984208,11.52,145.75,145.65,11.52]
[1727075984509,11.52,145.73,145.65,11.52]
[1727075984811,3.4313,145.71,145.66,3.4322]
[1727075985013,11.52,145.73,145.64,2.8244]
[1727075985901,3.4317,145.7,145.65,3.4325]
[1727075986411,3.4318,145.69,145.64,3.4328]
[1727075988305,3.39856158,145.75,145.63,4.8529]
[1727075988306,3.432,145.68,145.63,4.8529]
[1727075988704,3.4319,145.69,145.64,3.4328]
[1727075988910,11.52,145.71,145.63,1.4199]
[1727075989305,3.4318,145.69,145.64,3.4328]
[1727075989814,3.4318,145.69,145.63,1.4199]
[1727075990108,3.4318,145.69,145.61,11.52]
[1727075990715,3.4316,145.7,145.65,3.4325]
[1727075993212,14.9515,145.71,145.63,11.52]
[1727075993414,3.4315,145.71,145.63,11.52]
[1727075993813,3.4315,145.71,145.66,3.4323]
[1727075994719,3.4315,145.71,145.67,3.4322]
[1727075995220,3.4319,145.69,145.65,3.4325]
[1727075996413,1.3054,145.72,145.6,4.86716901]
[1727075996616,1.3054,145.72,145.62,11.52]
[1727075997013,1.3054,145.72,145.66,3.4323]
[1727075997514,3.4316,145.7,145.66,3.4323]
[1727075997711,3.4316,145.7,145.67,3.4321]
[1727075998012,3.4314,145.71,145.64,11.52]
[1727075998213,1.3054,145.72,145.64,11.52]
[1727075998413,1.3054,145.72,145.66,3.4323]
[1727075998613,3.4316,145.7,145.66,3.4323]
[1727075999220,3.4318,145.69,145.66,3.4323]
[1727076000018,3.4316,145.7,145.66,3.4323]
[1727076000319,3.4316,145.7,145.67,3.4322]
[1727076000520,1.4205,145.76,145.66,11.52]
[1727076000716,12.9405,145.76,145.67,4.1014]
[1727076000917,11.52,145.74,145.67,4.1014]
[1727076001219,3.431,145.73,145.67,4.1014]
[1727076001425,11.52,145.74,145.67,4.1014]
[1727076001611,1.3647,145.79,145.68,11.52]
[1727076001919,11.52,145.77,145.68,15.00073885]
[1727076002116,14.9499,145.77,145.68,15.00073885]
[1727076003217,3.4301,145.76,145.68,11.52]
[1727076003420,11.52,145.76,145.67,4.1014]
[1727076003917,11.52,145.76,145.7,3.4314]
[1727076004120,11.52,145.76,145.67,4.1014]
[1727076004616,14.9502,145.76,145.71,3.4311]
[1727076004817,11.52,145.76,145.67,4.1014]
[1727076005824,3.4306,145.74,145.7,3.4313]
[1727076007022,3.4308,145.73,145.69,3.4317]
[1727076007424,3.431,145.72,145.68,3.4319]
[1727076008220,3.431,145.72,145.67,7.5335]
[1727076008625,3.4308,145.73,145.67,4.1014]
[1727076009225,3.4312,145.72,145.65,11.52]
[1727076009522,11.52,145.74,145.67,3.4322]
[1727076009719,11.52,145.72,145.63,11.52]
[1727076010123,96.32898897,145.79,145.65,11.52]
[1727076010328,11.52,145.75,145.65,11.52]
[1727076010525,11.52,145.73,145.65,11.52]
[1727076010919,14.9509,145.73,145.68,3.4318]
[1727076011226,11.52,145.73,145.63,11.52]
[1727076011621,11.52,145.73,145.67,3.432]
[1727076011816,11.52,145.73,145.63,11.52]
[1727076012228,11.52,145.73,145.65,11.52]
[1727076012526,11.52,145.75,145.65,11.52]
[1727076012825,96.32898897,145.79,145.67,11.52]
[1727076013034,96.32898897,145.79,145.7,11.52]
[1727076013035,107.84898897,145.79,145.7,11.52]
[1727076013234,106.48428897,145.79,145.7,11.52]
[1727076013417,3.4297,145.78,145.74,3.4305]
[1727076013923,106.48428897,145.79,145.7,11.52]
[1727076014128,11.52,145.79,145.7,11.52]
[1727076014533,3.4297,145.78,145.73,3.4306]
[1727076015228,3.4297,145.78,145.74,3.4304]
[1727076015424,14.9494,145.79,145.7,11.52]
[1727076015724,12.8741,145.81,145.7,11.52]
[1727076015929,3.4293,145.8,145.7,11.52]
[1727076016321,12.8741,145.81,145.7,11.52]
[1727076017529,3.4296,145.79,145.74,3.4305]
[1727076017825,12.8741,145.81,145.7,11.52]
[1727076018025,3.43,145.77,145.72,3.4308]
[1727076018329,11.52,145.79,145.7,11.52]
[1727076018530,1.4251,145.82,145.68,7.47640971]
[1727076018531,93.39449172,146.06,145.72,11.52]
[1727076018723,3.4294,145.79,145.75,3.4303]
[1727076019324,11.52,145.82,145.76,3.4299]
[1727076020122,3.4293,145.8,145.76,3.4299]
[1727076020523,3.4293,145.8,145.72,11.52]
[1727076021328,3.7651,145.86,145.78,11.52]
[1727076021932,1.0,145.86,145.78,11.52]
[1727076022229,11.52,145.87,145.8,11.52]
[1727076022434,3.4279,145.86,145.82,3.4285]
[1727076022933,11.52,145.87,145.8,11.52]
[1727076023233,3.4278,145.86,145.82,3.4285]
[1727076023429,1.3616,145.9,145.8,11.52]
[1727076023630,3.4275,145.88,145.83,3.4283]
[1727076023836,11.52,145.91,145.82,11.52]
[1727076024238,3.4269,145.9,145.86,3.4275]
[1727076024533,11.52,145.91,145.81,4.1978]
[1727076024727,1.3534,145.94,145.81,4.1978]
[1727076024728,1.3931,145.95,145.86,11.52]
[1727076024926,106.38760966,145.96,145.88,11.52]
[1727076025331,106.38760966,145.96,145.85,11.52]
[1727076025731,3.426,145.94,145.89,3.4268]
[1727076025931,106.38760966,145.96,145.89,3.4268]
[1727076026434,3.4259,145.94,145.9,3.4268]
[1727076028332,3.4257,145.95,145.91,3.4265]
[1727076028942,3.4257,145.95,145.92,3.4263]
[1727076029133,3.4254,145.96,145.89,11.52]
[1727076029441,11.52,145.97,145.89,11.52]
[1727076029937,3.4258,145.95,145.91,3.4264]
[1727076030341,11.52,145.99,145.93,3.4259]
[1727076030837,3.40505112,146.07,145.88,4.0829]
[1727076031037,11.52,146.03,145.93,11.52]
[1727076031343,3.425,145.98,145.94,3.4258]
[1727076031935,11.52,145.99,145.92,3.4262]
[1727076032139,11.52,145.99,145.91,11.52]
[1727076032335,3.43662072,146.03,145.91,11.52]
[1727076032639,11.52,146.01,145.91,11.52]
[1727076032934,11.52,145.99,145.89,11.52]
[1727076033136,11.52,145.99,145.88,4.0829]
[1727076033137,1.0,146.02,145.9,11.52]
[1727076033335,1.0,146.02,145.92,11.52]
[1727076033542,3.4247,145.99,145.95,3.4254]
[1727076033742,12.52,146.02,145.92,11.52]
[1727076034136,3.4249,145.99,145.92,11.52]
[1727076034735,3.4249,145.99,145.94,3.4258]
[1727076035140,3.4249,145.99,145.92,11.52]
[1727076035340,3.4249,145.99,145.95,3.4255]
[1727076035939,3.4242,146.01,145.94,11.52]
[1727076036337,12.52,146.02,145.94,11.52]
[1727076037037,11.52,146.0,145.92,11.52]
[1727076037634,3.4248,145.99,145.95,3.4256]
[1727076037838,11.52,146.0,145.95,3.4256]
[1727076038038,3.4249,145.98,145.94,3.4258]
[1727076038244,11.52,146.0,145.92,11.52]
[1727076038745,3.425,145.98,145.92,11.52]
[1727076039047,11.52,146.0,145.92,11.52]
[1727076039340,1.0,146.02,145.94,11.52]
[1727076039743,1.0,146.02,145.95,3.4254]
[1727076041037,11.52,145.99,145.9,11.52]
[1727076041440,3.4258,145.95,145.88,15.6029]
[1727076041748,11.52,145.96,145.88,15.6029]
[1727076042050,3.4258,145.95,145.91,3.4264]
[1727076042949,14.9454,145.96,145.92,3.4262]
[1727076043147,3.4254,145.96,145.92,3.4262]
[1727076045148,3.4254,145.96,145.93,3.426]
[1727076046347,3.4254,145.96,145.9,11.52]
[1727076046348,3.4255,145.96,145.9,11.52]
[1727076046953,3.4255,145.96,145.92,3.4262]
[1727076048952,12.52,146.02,145.92,11.52]
[1727076049457,3.425,145.98,145.94,3.4257]
[1727076050059,11.52,146.0,145.92,11.52]
[1727076050254,11.52,146.0,145.9,11.52]
[1727076050458,11.52,145.98,145.88,15.6029]
[1727076050654,11.52,145.98,145.9,3.4266]
[1727076051154,3.426,145.94,145.91,3.4265]
[1727076052257,11.52,145.98,145.92,3.4262]
[1727076052457,1.4353,145.99,145.9,11.52]
[1727076053262,3.4255,145.96,145.92,3.4262]
[1727076053462,1.4353,145.99,145.92,3.4262]
[1727076053856,3.4257,145.95,145.91,3.4265]
[1727076054056,3.4257,145.95,145.9,11.52]
[1727076054258,3.4257,145.95,145.91,3.4264]
[1727076055155,11.52,145.96,145.88,4.0829]
[1727076055663,3.426,145.94,145.9,3.4268]
[1727076056760,3.4263,145.93,145.89,3.427]
[1727076057563,12.9476,145.98,145.89,11.52]
[1727076057961,1.4276,145.98,145.89,11.52]
[1727076058454,3.4255,145.96,145.92,3.4262]
[1727076058660,11.52,146.01,145.91,11.52]
[1727076059157,3.4252,145.97,145.91,11.52]
[1727076059760,3.4252,145.97,145.93,3.4259]
[1727076060667,3.425,145.98,145.94,3.4257]
[1727076060964,11.52,146.01,145.93,11.52]
[1727076061164,11.52,146.0,145.91,11.52]
[1727076061367,3.4255,145.96,145.92,3.4262]
[1727076061571,3.4255,145.96,145.91,11.52]
[1727076062269,12.52,146.02,145.93,11.52]
[1727076062863,12.52,146.02,145.94,3.4256]
[1727076063069,12.52,146.02,145.93,11.52]
[1727076063772,12.52,146.02,145.95,3.4256]
[1727076064363,3.4249,145.98,145.95,3.4256]
[1727076065367,11.52,146.0,145.92,11.52]
[1727076065565,11.52,145.99,145.9,11.52]
[1727076065970,3.4256,145.96,145.9,11.52]
[1727076066770,3.4256,145.96,145.92,3.4262]
[1727076067663,3.4256,145.95,145.91,3.4265]
[1727076068657,11.52,145.99,145.9,11.52]
[1727076069173,3.4254,145.96,145.9,11.52]
[1727076069769,3.4257,145.95,145.9,11.52]
[1727076069966,11.52,145.99,145.88,15.6029]
[1727076070264,3.4269,145.9,145.86,11.52]
[1727076070457,3.4269,145.9,145.84,11.52]
[1727076070660,11.52,145.92,145.84,11.52]
[1727076070860,3.4271,145.89,145.85,3.4278]
[1727076072065,3.4271,145.89,145.84,11.52]
[1727076072066,3.4273,145.88,145.84,14.9481]
[1727076072469,3.37138124,145.95,145.83,85.1428]
[1727076072676,3.37138124,145.95,145.83,88.571]
[1727076072677,3.4273,145.88,145.83,88.571]
[1727076072870,3.4273,145.88,145.83,6.311]
[1727076073067,3.4273,145.88,145.83,2.8828]
[1727076073376,3.4273,145.88,145.84,3.428]
[1727076073575,3.4271,145.89,145.83,2.8828]
[1727076073979,3.4271,145.89,145.85,3.4279]
[1727076075173,11.52,145.92,145.83,2.8828]
[1727076075174,11.52,145.92,145.84,11.52]
[1727076075374,3.4269,145.9,145.86,3.4277]
[1727076075579,1.0,145.94,145.86,11.52]
[1727076075580,12.52,145.94,145.86,11.52]
[1727076076481,3.4265,145.92,145.89,3.427]
[1727076076781,1.3731,145.97,145.89,11.52]
[1727076076978,11.52,145.99,145.89,11.52]
[1727076077177,11.52,145.99,145.91,11.52]
[1727076077577,3.4253,145.97,145.93,3.4259]
[1727076077789,11.52,145.99,145.93,3.4259]
[1727076078086,11.52,145.99,145.89,14.3475]
[1727076078381,3.4256,145.96,145.92,3.4262]
[1727076078585,2.7967,146.02,145.89,14.3475]
[1727076078781,11.52,145.98,145.89,14.3475]
[1727076079377,11.52,146.0,145.89,14.3475]
[1727076079775,3.425,145.98,145.94,3.4257]
[1727076080081,14.3167,146.02,145.94,3.4257]
[1727076080496,11.52,146.0,145.93,3.426]
[1727076081090,1.0,146.01,145.89,14.3475]
[1727076081294,11.52,145.99,145.9,11.52]
[1727076081498,3.4253,145.97,145.9,11.52]
[1727076081691,12.52,146.01,145.92,11.52]
[1727076082087,12.52,146.01,145.95,3.4254]
[1727076082088,3.425,145.98,145.95,3.4254]
[1727076082697,3.4252,145.97,145.94,3.4258]
[1727076083396,11.52,145.99,145.92,3.4261]
[1727076084197,3.4255,145.96,145.93,3.426]
[1727076084992,3.4258,145.95,145.92,3.4262]
[1727076086196,3.4258,145.95,145.91,3.4265]
[1727076087002,12.52,146.01,145.92,11.52]
[1727076087501,3.4255,145.96,145.93,3.426]
[1727076089596,1.0,146.01,145.91,3.4263]
[1727076089797,11.52,145.97,145.89,2.8275]
[1727076090107,1.0,146.01,145.88,4.7809]
[1727076090108,11.52,145.95,145.88,4.7809]
[1727076090607,11.52,145.95,145.88,1.3538]
[1727076090798,3.4265,145.92,145.88,1.3538]
[1727076091000,11.52,145.95,145.88,1.3538]
[1727076091199,3.4265,145.92,145.88,4.781]
[1727076091403,3.4265,145.92,145.88,1.3538]
[1727076091798,3.4265,145.92,145.84,6.205366]
[1727076091799,11.52,145.92,145.85,11.52]
[1727076092097,11.52,145.92,145.84,2.7723]
[1727076092294,11.52,145.92,145.85,3.4278]
[1727076092498,3.4272,145.89,145.85,3.4278]
[1727076092703,11.52,145.92,145.84,14.2923]
[1727076092906,11.52,145.97,145.88,11.52]
[1727076093303,11.52,145.97,145.9,3.4266]
[1727076093603,3.426,145.94,145.88,11.52]
[1727076094002,3.426,145.94,145.9,3.4266]
[1727076094801,3.426,145.94,145.91,3.4264]
[1727076095202,11.52,145.98,145.9,11.52]
[1727076095498,14.2546,146.0,145.92,11.52]
[1727076095915,3.4254,145.96,145.92,11.52]
[1727076097004,14.2546,146.0,145.92,11.52]
[1727076097207,1.0,146.01,145.93,11.52]
[1727076097408,1.0,146.01,145.95,3.4255]
[1727076097705,3.4248,145.99,145.95,3.4255]
[1727076098111,1.0,146.01,145.95,11.52]
[1727076098112,3.4245,146.0,145.95,11.52]
[1727076099007,3.4243,146.01,145.97,3.425]
[1727076099402,3.4243,146.01,145.98,3.4249]
[1727076099610,3.4241,146.02,145.98,3.4249]
[1727076100606,94.80474384,146.04,145.98,3.4249]
[1727076100607,3.4242,146.01,145.98,3.4249]
[1727076101215,3.424,146.02,145.98,3.4249]
[1727076101509,94.80474384,146.04,145.99,3.4246]
[1727076101718,229.0,146.12,145.97,18.42]
[1727076101905,19.8291,146.11,145.99,18.42]
[1727076102113,3.4229,146.07,146.01,18.42]
[1727076102416,3.4229,146.07,146.03,3.4237]
[1727076102711,3.4229,146.07,146.01,18.42]
[1727076102712,3.4232,146.06,146.01,19.8151]
[1727076103013,3.4232,146.06,146.01,1.3951]
[1727076103208,3.4232,146.06,146.02,3.4238]
[1727076103615,18.42,146.11,146.01,19.8151]
[1727076103816,18.42,146.11,146.04,3.4235]
[1727076104016,3.4225,146.09,146.02,1.4156]
[1727076104411,19.8291,146.13,146.03,18.42]
[1727076104613,3.4222,146.1,146.03,18.42]
[1727076104813,1.4091,146.13,146.03,18.42]
[1727076105005,1.4091,146.13,146.05,3.423]
[1727076105410,3.4224,146.09,146.03,18.42]
[1727076107618,3.4224,146.09,146.05,3.4231]
[1727076108122,3.4224,146.09,146.03,18.42]
[1727076108625,3.4224,146.09,146.05,3.4231]
[1727076108821,3.4226,146.08,146.05,3.4231]
[1727076111024,19.8096,146.14,146.03,18.42]
[1727076111521,3.4226,146.08,146.05,3.4232]
[1727076112922,19.8096,146.14,146.03,3.4235]
[1727076113122,18.42,146.11,146.02,1.4156]
[1727076113727,18.42,146.11,146.04,3.4233]
[1727076114026,18.42,146.11,146.02,1.4156]
[1727076114229,3.4227,146.08,146.02,1.4156]
[1727076114820,18.42,146.11,146.03,3.4237]
[1727076115027,18.42,146.11,146.02,1.4156]
[1727076116021,3.4235,146.04,146.02,1.4156]
[1727076116427,3.4235,146.04,146.0,1.4405]
[1727076116623,18.42,146.09,145.96,21.2058]
[1727076116822,4.83137318,146.1,145.96,22.5684]
[1727076116823,18.42,146.07,145.96,22.5684]
[1727076117320,18.42,146.07,145.99,3.4245]
[1727076117523,18.42,146.07,145.96,22.5684]
[1727076118331,3.4239,146.03,146.0,3.4244]
[1727076118538,18.42,146.07,145.96,22.5684]
[1727076119127,3.4236,146.04,145.96,22.5684]
[1727076119317,18.42,146.07,145.96,22.5684]
[1727076119923,3.4238,146.03,145.99,3.4246]
[1727076120124,3.4238,146.03,145.96,22.5684]
[1727076120422,3.4238,146.03,146.0,3.4244]
[1727076120623,3.4236,146.04,145.99,18.42]
[1727076120824,18.42,146.09,145.99,18.42]
[1727076121029,3.4234,146.05,146.02,3.424]
[1727076121327,3.4234,146.05,145.99,18.42]
[1727076121528,3.4234,146.05,146.01,3.4241]
[1727076121732,3.4234,146.05,145.99,18.42]
[1727076122129,18.42,146.07,145.96,4.1484]
[1727076122333,11.67587318,146.1,145.96,4.1484]
[1727076122334,11.51,146.04,145.96,4.1484]
[1727076122727,11.51,146.04,145.95,11.51]
[1727076122927,1.4256,146.06,145.93,11.51]
[1727076122928,11.51,146.02,145.93,11.51]
[1727076123830,11.51,146.0,145.91,11.51]
[1727076125131,3.4253,145.97,145.93,3.426]
[1727076125330,11.51,146.0,145.91,11.51]
[1727076125731,3.4262,145.93,145.9,4.1311]
[1727076126035,3.4262,145.93,145.9,2.8279]
[1727076127334,3.4259,145.94,145.9,2.8279]
[1727076128029,3.4259,145.94,145.9,6.2546]
[1727076128329,11.51,145.97,145.9,1.4311]
[1727076128533,11.51,145.97,145.87,93.71]
[1727076128935,3.4265,145.92,145.88,3.4271]
[1727076129237,3.4265,145.92,145.87,93.71]
[1727076129238,1.4216,145.96,145.87,11.51]
[1727076129631,1.4216,145.96,145.89,3.4269]
[1727076129937,1.4216,145.96,145.87,11.51]
[1727076130438,3.4263,145.92,145.89,3.427]
[1727076130639,1.4216,145.96,145.89,11.51]
[1727076131030,3.426,145.94,145.9,3.4267]
[1727076131527,1.4216,145.96,145.89,14.9369]
[1727076132134,3.4262,145.93,145.89,14.9369]